[Event "*** Titled Tuesday Blitz"]
[Site "Chess.com"]
[Date "2020.04.21"]
[Round "6"]
[White "LizaSolovyova"]
[Black "algatar2020"]
[Result "1-0"]
[WhiteElo "2490"]
[BlackElo "1955"]
[TimeControl "180+1"]
[EndTime "11:08:32 PDT"]
[Termination "LizaSolovyova won by resignation"]

1. d4 {[%clk 0:03:00.6]} 1... Nf6 {[%clk 0:02:59.3]} 2. Nc3 {[%clk 0:02:59.6]}
2... g6 {[%clk 0:02:59.4]} 3. e4 {[%clk 0:02:59.7]} 3... d6 {[%clk 0:02:59.4]}
4. f3 {[%clk 0:02:59.5]} 4... Bg7 {[%clk 0:02:59.3]} 5. Be3 {[%clk 0:02:59.7]}
5... c6 {[%clk 0:02:59.5]} 6. Qd2 {[%clk 0:02:59.5]} 6... Qc7 {[%clk 0:02:59.7]}
7. O-O-O {[%clk 0:02:53.3]} 7... b5 {[%clk 0:02:59.3]} 8. g4 {[%clk 0:02:51.3]}
8... a5 {[%clk 0:02:59]} 9. h4 {[%clk 0:02:50.6]} 9... a4 {[%clk 0:02:57.4]} 10.
a3 {[%clk 0:02:49]} 10... Nbd7 {[%clk 0:02:57]} 11. h5 {[%clk 0:02:48.1]} 11...
Nb6 {[%clk 0:02:56.1]} 12. h6 {[%clk 0:02:45.2]} 12... Bf8 {[%clk 0:02:55.6]}
13. d5 {[%clk 0:02:41.7]} 13... Nc4 {[%clk 0:02:53.8]} 14. Bxc4 {[%clk
0:02:40.1]} 14... bxc4 {[%clk 0:02:53.8]} 15. dxc6 {[%clk 0:02:40.4]} 15... Qxc6
{[%clk 0:02:49.3]} 16. Bd4 {[%clk 0:02:39.4]} 16... e5 {[%clk 0:02:47.4]} 17.
Bxe5 {[%clk 0:02:39.4]} 17... Be7 {[%clk 0:02:36.6]} 18. Bxd6 {[%clk 0:02:39.2]}
18... Be6 {[%clk 0:02:33.3]} 19. Bxe7 {[%clk 0:02:31.2]} 19... Kxe7 {[%clk
0:02:33]} 20. g5 {[%clk 0:02:30.4]} 20... Nd7 {[%clk 0:02:31.7]} 21. Nge2 {[%clk
0:02:30.2]} 21... Rhb8 {[%clk 0:02:27.8]} 22. Nd5+ {[%clk 0:02:25]} 22... Bxd5
{[%clk 0:02:23.2]} 23. exd5 {[%clk 0:02:24]} 23... Qb6 {[%clk 0:02:13.2]} 24.
Qd4 {[%clk 0:02:17.6]} 24... Qxd4 {[%clk 0:01:55.9]} 25. Rxd4 {[%clk 0:02:16.2]}
25... Nb6 {[%clk 0:01:54]} 26. Nc3 {[%clk 0:02:15.8]} 26... Kd7 {[%clk
0:01:49.5]} 27. Rf4 {[%clk 0:02:14.6]} 27... Ke7 {[%clk 0:01:47.4]} 28. Re1+
{[%clk 0:02:13.9]} 28... Kf8 {[%clk 0:01:46.9]} 29. Re6 {[%clk 0:02:13.4]} 29...
Ra5 {[%clk 0:01:37.4]} 30. Ref6 {[%clk 0:02:09.1]} 30... Rb7 {[%clk 0:01:36.2]}
31. Rd4 {[%clk 0:02:03.2]} 31... Nd7 {[%clk 0:01:25.4]} 32. Rc6 {[%clk 0:02:02]}
32... Ne5 {[%clk 0:01:24.7]} 33. Rc8+ {[%clk 0:02:01.4]} 33... Ke7 {[%clk
0:01:24.7]} 34. f4 {[%clk 0:02:01.7]} 34... Nd7 {[%clk 0:01:19.1]} 35. Rdxc4
{[%clk 0:02:00.5]} 35... Nb6 {[%clk 0:01:14.1]} 36. R8c7+ {[%clk 0:01:59.5]}
36... Rxc7 {[%clk 0:01:14]} 37. Rxc7+ {[%clk 0:02:00.4]} 37... Ke8 {[%clk
0:01:13.2]} 38. d6 {[%clk 0:01:58.3]} 38... Nd5 {[%clk 0:01:11.8]} 39. Nxd5
{[%clk 0:01:27.6]} 39... Rxd5 {[%clk 0:01:11]} 40. Rc8+ {[%clk 0:01:27.8]} 40...
Kd7 {[%clk 0:01:10.6]} 41. Rh8 {[%clk 0:01:23.6]} 41... Rd4 {[%clk 0:01:10.5]}
42. Rxh7 {[%clk 0:01:23.5]} 42... Ke6 {[%clk 0:01:10.6]} 43. Rg7 {[%clk
0:01:14.7]} 43... Rxf4 {[%clk 0:01:10.2]} 44. Rg8 {[%clk 0:01:11.2]} 44... Rh4
{[%clk 0:01:07.2]} 45. Rd8 {[%clk 0:01:09.6]} 45... Rh5 {[%clk 0:01:05.8]} 46.
Kd2 {[%clk 0:01:06.3]} 46... f6 {[%clk 0:00:59.9]} 47. gxf6 {[%clk 0:01:04.5]}
47... Kxf6 {[%clk 0:00:59.9]} 48. Re8 {[%clk 0:01:02.3]} 48... Rxh6 {[%clk
0:00:48.9]} 49. c4 {[%clk 0:01:02.3]} 49... Rh2+ {[%clk 0:00:46.7]} 50. Kc3
{[%clk 0:01:01.7]} 50... Rh3+ {[%clk 0:00:45.8]} 51. Kb4 {[%clk 0:00:59.8]}
51... Rb3+ {[%clk 0:00:45.3]} 52. Kc5 {[%clk 0:01:00]} 52... Rd3 {[%clk
0:00:45.1]} 53. Kc6 {[%clk 0:01:00.1]} 53... g5 {[%clk 0:00:45]} 54. d7 {[%clk
0:01:00]} 54... g4 {[%clk 0:00:44.6]} 55. d8=Q+ {[%clk 0:01:00.1]} 1-0

[Event "*** Titled Tuesday Blitz"]
[Site "Chess.com"]
[Date "2020.04.21"]
[Round "6"]
[White "Infernal_XaM"]
[Black "EugeneRougon"]
[Result "1-0"]
[WhiteElo "2940"]
[BlackElo "2707"]
[TimeControl "180+1"]
[EndTime "11:08:34 PDT"]
[Termination "Infernal_XaM won by resignation"]

1. c4 {[%clk 0:03:00.9]} 1... c6 {[%clk 0:02:55.5]} 2. e4 {[%clk 0:03:00.3]}
2... d5 {[%clk 0:02:55.7]} 3. e5 {[%clk 0:03:00.7]} 3... Bf5 {[%clk 0:02:39.7]}
4. d4 {[%clk 0:03:00.3]} 4... e6 {[%clk 0:02:35.3]} 5. Nc3 {[%clk 0:02:59.1]}
5... Nd7 {[%clk 0:02:29.4]} 6. g4 {[%clk 0:02:53.5]} 6... Bg6 {[%clk 0:02:29.2]}
7. Nge2 {[%clk 0:02:53.9]} 7... h6 {[%clk 0:02:19.8]} 8. h4 {[%clk 0:02:51.3]}
8... Bb4 {[%clk 0:02:17]} 9. h5 {[%clk 0:02:47.7]} 9... Bh7 {[%clk 0:02:17.3]}
10. a3 {[%clk 0:02:47.9]} 10... Ba5 {[%clk 0:02:14.8]} 11. b4 {[%clk 0:02:47.3]}
11... Bc7 {[%clk 0:02:01.4]} 12. c5 {[%clk 0:02:47.3]} 12... a5 {[%clk
0:01:30.9]} 13. b5 {[%clk 0:02:44.9]} 13... cxb5 {[%clk 0:01:26.3]} 14. Nxb5
{[%clk 0:02:44.6]} 14... Ne7 {[%clk 0:01:27.2]} 15. Be3 {[%clk 0:02:43.2]} 15...
O-O {[%clk 0:01:27]} 16. f4 {[%clk 0:02:26.7]} 16... b6 {[%clk 0:01:24.3]} 17.
cxb6 {[%clk 0:02:10.3]} 17... Bxb6 {[%clk 0:01:23.5]} 18. Bh3 {[%clk 0:02:05.2]}
18... f6 {[%clk 0:01:22.3]} 19. Qd2 {[%clk 0:01:41.9]} 19... fxe5 {[%clk
0:01:17.2]} 20. fxe5 {[%clk 0:01:42.1]} 20... Be4 {[%clk 0:01:14.3]} 21. Rh2
{[%clk 0:01:36.6]} 21... Rf3 {[%clk 0:01:11.8]} 22. Bxh6 {[%clk 0:01:25.3]}
22... gxh6 {[%clk 0:00:44.8]} 23. Qxh6 {[%clk 0:01:24.4]} 23... Nf8 {[%clk
0:00:42.7]} 24. Nd6 {[%clk 0:01:22.1]} 24... a4 {[%clk 0:00:36.3]} 25. Rf2
{[%clk 0:01:08.1]} 25... Rxf2 {[%clk 0:00:20.5]} 26. Kxf2 {[%clk 0:01:07.9]}
26... Nc6 {[%clk 0:00:21.4]} 27. Kg3 {[%clk 0:00:58.7]} 27... Nxd4 {[%clk
0:00:20.6]} 28. Nc3 {[%clk 0:00:51.3]} 28... Nc6 {[%clk 0:00:17.2]} 29. Ncxe4
{[%clk 0:00:46.2]} 29... dxe4 {[%clk 0:00:17.7]} 30. g5 {[%clk 0:00:44]} 30...
Nxe5 {[%clk 0:00:14.9]} 31. Bxe6+ {[%clk 0:00:43.4]} 31... Nxe6 {[%clk
0:00:15.4]} 32. Qxe6+ {[%clk 0:00:43.6]} 32... Kh7 {[%clk 0:00:15.6]} 33. Qf5+
{[%clk 0:00:41]} 33... Kg8 {[%clk 0:00:14.5]} 34. Qxe5 {[%clk 0:00:40.4]} 34...
Bc7 {[%clk 0:00:14.4]} 35. Rd1 {[%clk 0:00:39.3]} 35... Ra6 {[%clk 0:00:12.5]}
36. Qe6+ {[%clk 0:00:38.9]} 36... Kh7 {[%clk 0:00:12.7]} 37. Qxe4+ {[%clk
0:00:33.7]} 37... Kg8 {[%clk 0:00:09.6]} 38. Qc4+ {[%clk 0:00:33.5]} 1-0

[Event "*** Titled Tuesday Blitz"]
[Site "Chess.com"]
[Date "2020.04.21"]
[Round "6"]
[White "ClockworkKubrick"]
[Black "Keks2017"]
[Result "1-0"]
[WhiteElo "2187"]
[BlackElo "2381"]
[TimeControl "180+1"]
[EndTime "11:08:34 PDT"]
[Termination "ClockworkKubrick won by resignation"]

1. e4 {[%clk 0:03:00.9]} 1... c5 {[%clk 0:02:58.6]} 2. Nf3 {[%clk 0:03:01.1]}
2... d6 {[%clk 0:02:58.7]} 3. Nc3 {[%clk 0:03:01.8]} 3... a6 {[%clk 0:02:57.1]}
4. Be2 {[%clk 0:03:01.8]} 4... Nc6 {[%clk 0:02:54.9]} 5. d3 {[%clk 0:03:02.3]}
5... g6 {[%clk 0:02:52.7]} 6. O-O {[%clk 0:03:02.4]} 6... Bg7 {[%clk 0:02:52.8]}
7. Be3 {[%clk 0:03:02.5]} 7... Nd4 {[%clk 0:02:52.1]} 8. h3 {[%clk 0:03:01.9]}
8... b5 {[%clk 0:02:51.8]} 9. Nh2 {[%clk 0:03:01.4]} 9... b4 {[%clk 0:02:47.4]}
10. Nd5 {[%clk 0:02:59.6]} 10... e6 {[%clk 0:02:43.5]} 11. Nf4 {[%clk
0:02:56.5]} 11... Nxe2+ {[%clk 0:02:42.7]} 12. Nxe2 {[%clk 0:02:55.1]} 12...
Bxb2 {[%clk 0:02:42.2]} 13. Rb1 {[%clk 0:02:52]} 13... Bg7 {[%clk 0:02:41.6]}
14. Qd2 {[%clk 0:02:52.1]} 14... Ne7 {[%clk 0:02:34.9]} 15. Bh6 {[%clk
0:02:51.8]} 15... O-O {[%clk 0:02:34.3]} 16. Bxg7 {[%clk 0:02:52.2]} 16... Kxg7
{[%clk 0:02:27.9]} 17. f4 {[%clk 0:02:53.1]} 17... f5 {[%clk 0:02:25.1]} 18. Nf3
{[%clk 0:02:46.7]} 18... h6 {[%clk 0:02:21.9]} 19. c3 {[%clk 0:02:44.7]} 19...
a5 {[%clk 0:02:20.3]} 20. a3 {[%clk 0:02:45]} 20... bxa3 {[%clk 0:02:17.5]} 21.
Qa2 {[%clk 0:02:45]} 21... Qd7 {[%clk 0:02:06.4]} 22. Qxa3 {[%clk 0:02:42.4]}
22... Ba6 {[%clk 0:02:06.1]} 23. Rfd1 {[%clk 0:02:41.7]} 23... fxe4 {[%clk
0:02:04.2]} 24. Ne1 {[%clk 0:02:35.4]} 24... exd3 {[%clk 0:02:02.2]} 25. Nxd3
{[%clk 0:02:35.6]} 25... Qa7 {[%clk 0:01:53.6]} 26. c4 {[%clk 0:02:35.3]} 26...
Nf5 {[%clk 0:01:50.5]} 27. Qc3+ {[%clk 0:02:31.6]} 27... Kh7 {[%clk 0:01:50.4]}
28. Rb2 {[%clk 0:02:17.4]} 28... Rf7 {[%clk 0:01:47.6]} 29. Rdb1 {[%clk
0:02:17]} 29... a4 {[%clk 0:01:41.1]} 30. Nf2 {[%clk 0:02:10.7]} 30... Qe7
{[%clk 0:01:21.5]} 31. Ne4 {[%clk 0:01:55.8]} 31... Raf8 {[%clk 0:01:03.4]} 32.
Rb6 {[%clk 0:01:52.8]} 32... Qa7 {[%clk 0:00:48.2]} 33. Nxd6 {[%clk 0:01:44.5]}
33... Nxd6 {[%clk 0:00:47.2]} 34. Rxd6 {[%clk 0:01:44.5]} 34... a3 {[%clk
0:00:41.1]} 35. Ra1 {[%clk 0:01:24.8]} 35... Bb7 {[%clk 0:00:34.7]} 36. Rxa3
{[%clk 0:01:22.1]} 36... Qb8 {[%clk 0:00:34.4]} 37. Qd3 {[%clk 0:01:19.3]} 37...
Ba8 {[%clk 0:00:20.9]} 38. Rxe6 {[%clk 0:01:16.6]} 38... Qb7 {[%clk 0:00:20.6]}
39. Qxg6+ {[%clk 0:01:11.3]} 39... Kh8 {[%clk 0:00:20.5]} 40. Qxh6+ {[%clk
0:01:05.2]} 40... Kg8 {[%clk 0:00:20.5]} 41. Rg6+ {[%clk 0:01:04.3]} 41... Rg7
{[%clk 0:00:20.1]} 42. Rxg7+ {[%clk 0:01:03.7]} 42... Qxg7 {[%clk 0:00:19.9]}
43. Qxg7+ {[%clk 0:01:03.5]} 43... Kxg7 {[%clk 0:00:19.3]} 44. g3 {[%clk
0:01:01.7]} 44... Re8 {[%clk 0:00:18.6]} 45. Kf2 {[%clk 0:01:01.5]} 45... Bc6
{[%clk 0:00:16.9]} 46. Nc3 {[%clk 0:00:59.7]} 46... Bd7 {[%clk 0:00:16]} 47. g4
{[%clk 0:00:58.2]} 47... Be6 {[%clk 0:00:15]} 48. Nd5 {[%clk 0:00:57.8]} 48...
Rb8 {[%clk 0:00:14.6]} 49. Re3 {[%clk 0:00:55.1]} 49... Kf7 {[%clk 0:00:12.6]}
50. f5 {[%clk 0:00:53.9]} 1-0

[Event "*** Titled Tuesday Blitz"]
[Site "Chess.com"]
[Date "2020.04.21"]
[Round "6"]
[White "szefru"]
[Black "Alopekos"]
[Result "1-0"]
[WhiteElo "2151"]
[BlackElo "2367"]
[TimeControl "180+1"]
[EndTime "11:08:34 PDT"]
[Termination "szefru won on time"]

1. e4 {[%clk 0:03:00.9]} 1... c5 {[%clk 0:02:58.6]} 2. Nf3 {[%clk 0:03:00.5]}
2... e6 {[%clk 0:02:58.8]} 3. b3 {[%clk 0:03:00]} 3... d6 {[%clk 0:02:50.1]} 4.
Bb2 {[%clk 0:02:58.6]} 4... Nf6 {[%clk 0:02:50]} 5. e5 {[%clk 0:02:57]} 5...
dxe5 {[%clk 0:02:50.9]} 6. Nxe5 {[%clk 0:02:57.4]} 6... Nbd7 {[%clk 0:02:46]} 7.
f4 {[%clk 0:02:48.4]} 7... Nd5 {[%clk 0:02:44.5]} 8. Qf3 {[%clk 0:02:43.4]} 8...
Nxe5 {[%clk 0:02:02.8]} 9. fxe5 {[%clk 0:02:44.3]} 9... Be7 {[%clk 0:01:52]} 10.
Bb5+ {[%clk 0:02:40.7]} 10... Bd7 {[%clk 0:01:51.3]} 11. Bxd7+ {[%clk
0:02:40.7]} 11... Qxd7 {[%clk 0:01:51.4]} 12. O-O {[%clk 0:02:41.2]} 12... O-O
{[%clk 0:01:44]} 13. d3 {[%clk 0:02:40.9]} 13... Nb4 {[%clk 0:01:37.6]} 14. Qf2
{[%clk 0:02:35.5]} 14... Rac8 {[%clk 0:01:20.8]} 15. a3 {[%clk 0:02:34.7]} 15...
Nc6 {[%clk 0:01:16.3]} 16. Nd2 {[%clk 0:02:33.9]} 16... Nd4 {[%clk 0:01:13.6]}
17. Ne4 {[%clk 0:02:29.8]} 17... Qd5 {[%clk 0:00:55.8]} 18. Nf6+ {[%clk
0:01:36.7]} 18... gxf6 {[%clk 0:00:56.7]} 19. Qg3+ {[%clk 0:01:36.5]} 19... Kh8
{[%clk 0:00:56.2]} 20. exf6 {[%clk 0:01:36.2]} 20... Rg8 {[%clk 0:00:17.4]} 21.
Qh3 {[%clk 0:01:35.5]} 21... Bd6 {[%clk 0:00:14.7]} 22. c4 {[%clk 0:01:21.5]}
22... Qg5 {[%clk 0:00:07.6]} 23. Rae1 {[%clk 0:01:19.3]} 23... Rg6 {[%clk
0:00:03.6]} 24. Bxd4 {[%clk 0:01:14.2]} 24... cxd4 {[%clk 0:00:03.5]} 25. g3
{[%clk 0:01:13.1]} 25... Rcg8 {[%clk 0:00:02.7]} 26. Qg2 {[%clk 0:01:05]} 26...
Rxf6 {[%clk 0:00:02.9]} 27. Rxf6 {[%clk 0:01:04.2]} 27... Qxf6 {[%clk
0:00:03.8]} 28. Kh1 {[%clk 0:00:58.8]} 28... Bxa3 {[%clk 0:00:03.3]} 29. Ra1
{[%clk 0:00:53.7]} 29... Bd6 {[%clk 0:00:02.6]} 30. Rf1 {[%clk 0:00:53.3]} 30...
Qg6 {[%clk 0:00:02.4]} 31. Qf3 {[%clk 0:00:48]} 31... a5 {[%clk 0:00:02.2]} 32.
Qf2 {[%clk 0:00:35.6]} 32... Rf8 {[%clk 0:00:02.5]} 33. Qxd4+ {[%clk 0:00:35.2]}
33... Kg8 {[%clk 0:00:02.9]} 34. Qxd6 {[%clk 0:00:35]} 34... b6 {[%clk
0:00:02.2]} 35. Rf3 {[%clk 0:00:31.3]} 35... Qg4 {[%clk 0:00:01.6]} 36. Kg2
{[%clk 0:00:31.4]} 36... Qg6 {[%clk 0:00:01.5]} 37. Qxb6 {[%clk 0:00:30.6]} 1-0

[Event "*** Titled Tuesday Blitz"]
[Site "Chess.com"]
[Date "2020.04.21"]
[Round "6"]
[White "GMHess"]
[Black "GukeshDommaraju"]
[Result "0-1"]
[WhiteElo "2854"]
[BlackElo "2700"]
[TimeControl "180+1"]
[EndTime "11:08:35 PDT"]
[Termination "GukeshDommaraju won by resignation"]

1. b3 {[%clk 0:03:00.9]} 1... e5 {[%clk 0:02:57.7]} 2. Bb2 {[%clk 0:03:01.8]}
2... d6 {[%clk 0:02:57.9]} 3. e3 {[%clk 0:03:01.4]} 3... g6 {[%clk 0:02:57.8]}
4. Ne2 {[%clk 0:03:00.2]} 4... Bg7 {[%clk 0:02:57.9]} 5. d3 {[%clk 0:03:00.4]}
5... Ne7 {[%clk 0:02:56.9]} 6. Nd2 {[%clk 0:03:01]} 6... O-O {[%clk 0:02:56.7]}
7. g3 {[%clk 0:03:01.7]} 7... Nbc6 {[%clk 0:02:54]} 8. Bg2 {[%clk 0:03:02.3]}
8... Be6 {[%clk 0:02:53.6]} 9. h4 {[%clk 0:03:01.8]} 9... h6 {[%clk 0:02:53.1]}
10. d4 {[%clk 0:02:51.6]} 10... d5 {[%clk 0:02:42.8]} 11. Nf3 {[%clk 0:02:37.9]}
11... e4 {[%clk 0:02:38.2]} 12. Nd2 {[%clk 0:02:38.2]} 12... Bg4 {[%clk
0:02:35.7]} 13. Bh3 {[%clk 0:02:31]} 13... Bxh3 {[%clk 0:02:28.6]} 14. Rxh3
{[%clk 0:02:31.9]} 14... Qd7 {[%clk 0:02:23.5]} 15. Nf4 {[%clk 0:02:18.8]} 15...
Nd8 {[%clk 0:01:57.9]} 16. Ba3 {[%clk 0:02:09.6]} 16... Ne6 {[%clk 0:01:37.3]}
17. Qg4 {[%clk 0:02:03.6]} 17... f5 {[%clk 0:01:36.4]} 18. Qe2 {[%clk
0:02:02.3]} 18... Kh7 {[%clk 0:01:01.2]} 19. h5 {[%clk 0:01:37.3]} 19... g5
{[%clk 0:00:47.1]} 20. Bxe7 {[%clk 0:01:33.6]} 20... gxf4 {[%clk 0:00:44.1]} 21.
Bxf8 {[%clk 0:01:33.5]} 21... f3 {[%clk 0:00:41.4]} 22. Qf1 {[%clk 0:01:29.4]}
22... Rxf8 {[%clk 0:00:40.7]} 23. Rh1 {[%clk 0:01:21.6]} 23... c5 {[%clk
0:00:39.6]} 24. c3 {[%clk 0:01:20.4]} 24... cxd4 {[%clk 0:00:37.3]} 25. cxd4
{[%clk 0:01:21.3]} 25... Rc8 {[%clk 0:00:37.1]} 26. a4 {[%clk 0:01:08]} 26...
Qc6 {[%clk 0:00:35.3]} 27. Rd1 {[%clk 0:01:06.7]} 27... Qc2 {[%clk 0:00:34.3]}
28. Qh3 {[%clk 0:00:51.7]} 28... Rf8 {[%clk 0:00:25.2]} 29. Rg1 {[%clk
0:00:51.2]} 29... Ng5 {[%clk 0:00:23.1]} 30. Qf1 {[%clk 0:00:51.3]} 30... a6
{[%clk 0:00:20.9]} 31. Rh1 {[%clk 0:00:49.5]} 31... Rc8 {[%clk 0:00:19.8]} 32.
Rh4 {[%clk 0:00:49.7]} 32... Qb2 {[%clk 0:00:19.3]} 33. g4 {[%clk 0:00:20.7]}
33... Rc1 {[%clk 0:00:18.5]} 34. gxf5 {[%clk 0:00:08.1]} 34... Qc2 {[%clk
0:00:18.5]} 0-1

[Event "*** Titled Tuesday Blitz"]
[Site "Chess.com"]
[Date "2020.04.21"]
[Round "6"]
[White "KubaGepard"]
[Black "PawnEatingZombie"]
[Result "0-1"]
[WhiteElo "2334"]
[BlackElo "2155"]
[TimeControl "180+1"]
[EndTime "11:08:36 PDT"]
[Termination "PawnEatingZombie won on time"]

1. d4 {[%clk 0:03:00.9]} 1... d5 {[%clk 0:02:58.7]} 2. Nf3 {[%clk 0:03:01.2]}
2... e6 {[%clk 0:02:58.1]} 3. Bf4 {[%clk 0:03:01.5]} 3... Bd6 {[%clk 0:02:57.2]}
4. Bg3 {[%clk 0:03:01.1]} 4... Nf6 {[%clk 0:02:51.2]} 5. e3 {[%clk 0:02:59.3]}
5... c5 {[%clk 0:02:50.8]} 6. c3 {[%clk 0:02:59.5]} 6... Qc7 {[%clk 0:02:50.9]}
7. Nbd2 {[%clk 0:02:56.4]} 7... Nbd7 {[%clk 0:02:51]} 8. Bd3 {[%clk 0:02:47.3]}
8... b6 {[%clk 0:02:50.7]} 9. O-O {[%clk 0:02:45.9]} 9... Bb7 {[%clk 0:02:50.5]}
10. Qe2 {[%clk 0:02:44.7]} 10... O-O {[%clk 0:02:47.8]} 11. Bxd6 {[%clk
0:02:40.9]} 11... Qxd6 {[%clk 0:02:47.4]} 12. e4 {[%clk 0:02:41]} 12... dxe4
{[%clk 0:02:37.5]} 13. Nxe4 {[%clk 0:02:40.9]} 13... Nxe4 {[%clk 0:02:36.9]} 14.
Bxe4 {[%clk 0:02:40.4]} 14... Bxe4 {[%clk 0:02:36.8]} 15. Qxe4 {[%clk
0:02:39.8]} 15... Nf6 {[%clk 0:02:36.4]} 16. Qh4 {[%clk 0:02:39.2]} 16... cxd4
{[%clk 0:02:35.3]} 17. Rad1 {[%clk 0:02:37.2]} 17... Qd5 {[%clk 0:02:17.2]} 18.
Rxd4 {[%clk 0:02:33.3]} 18... Qxa2 {[%clk 0:02:15.7]} 19. Rf4 {[%clk 0:02:32.8]}
19... Qxb2 {[%clk 0:01:58.1]} 20. Ne5 {[%clk 0:02:22.9]} 20... Nd5 {[%clk
0:01:34]} 21. Rf3 {[%clk 0:02:10.1]} 21... Qe2 {[%clk 0:01:08.9]} 22. Ng4 {[%clk
0:02:06.9]} 22... f5 {[%clk 0:00:54.4]} 23. Ne3 {[%clk 0:02:05.4]} 23... Nf6
{[%clk 0:00:48.3]} 24. Qa4 {[%clk 0:01:47.3]} 24... a5 {[%clk 0:00:41.2]} 25.
Qb3 {[%clk 0:01:46.4]} 25... a4 {[%clk 0:00:29.3]} 26. Qxe6+ {[%clk 0:01:44.6]}
26... Kh8 {[%clk 0:00:29.8]} 27. Qxb6 {[%clk 0:00:56.3]} 27... a3 {[%clk
0:00:26.3]} 28. Qb1 {[%clk 0:00:56.7]} 28... a2 {[%clk 0:00:24.1]} 29. Qa1
{[%clk 0:00:56.6]} 29... Rfb8 {[%clk 0:00:16.5]} 30. Rxf5 {[%clk 0:00:17.4]}
30... Qb2 {[%clk 0:00:15.7]} 31. Qxb2 {[%clk 0:00:09.4]} 31... Rxb2 {[%clk
0:00:14.6]} 32. Rc5 {[%clk 0:00:02.1]} 32... Rb1 {[%clk 0:00:12.3]} 0-1

[Event "*** Titled Tuesday Blitz"]
[Site "Chess.com"]
[Date "2020.04.21"]
[Round "6"]
[White "DonBroca"]
[Black "Schachmalanders"]
[Result "0-1"]
[WhiteElo "2109"]
[BlackElo "2337"]
[TimeControl "180+1"]
[EndTime "11:08:37 PDT"]
[Termination "Schachmalanders won by resignation"]

1. e4 {[%clk 0:02:33.3]} 1... c5 {[%clk 0:02:20.7]} 2. Nf3 {[%clk 0:02:31.5]}
2... d6 {[%clk 0:02:20.6]} 3. d4 {[%clk 0:02:32.4]} 3... cxd4 {[%clk 0:02:21.5]}
4. Nxd4 {[%clk 0:02:31.8]} 4... Nf6 {[%clk 0:02:22.2]} 5. Nc3 {[%clk 0:02:31.9]}
5... a6 {[%clk 0:02:22.7]} 6. Be3 {[%clk 0:02:30.6]} 6... e5 {[%clk 0:02:22.4]}
7. Nb3 {[%clk 0:02:30]} 7... Be6 {[%clk 0:02:22.9]} 8. f3 {[%clk 0:02:30]} 8...
Be7 {[%clk 0:02:23]} 9. Qd2 {[%clk 0:02:30.4]} 9... O-O {[%clk 0:02:23.4]} 10.
g4 {[%clk 0:02:31]} 10... Nbd7 {[%clk 0:02:23.1]} 11. g5 {[%clk 0:02:31.3]}
11... Nh5 {[%clk 0:02:23.3]} 12. h4 {[%clk 0:02:24.6]} 12... b5 {[%clk
0:02:19.9]} 13. Nd5 {[%clk 0:02:22.1]} 13... Rc8 {[%clk 0:02:12.5]} 14. Bh3
{[%clk 0:02:12.1]} 14... Bxh3 {[%clk 0:01:59.7]} 15. Rxh3 {[%clk 0:02:10.9]}
15... f6 {[%clk 0:01:56.3]} 16. O-O-O {[%clk 0:02:04.2]} 16... g6 {[%clk
0:01:24.7]} 17. Nxe7+ {[%clk 0:01:49.7]} 17... Qxe7 {[%clk 0:01:24.7]} 18. Qxd6
{[%clk 0:01:49.7]} 18... Qxd6 {[%clk 0:01:14.8]} 19. Rxd6 {[%clk 0:01:50.6]}
19... Rf7 {[%clk 0:01:15.2]} 20. Rxa6 {[%clk 0:01:10.9]} 20... fxg5 {[%clk
0:01:00.9]} 21. Bxg5 {[%clk 0:00:57.3]} 21... Rcf8 {[%clk 0:00:54.2]} 22. Ra7
{[%clk 0:00:50.4]} 22... Ndf6 {[%clk 0:00:34.8]} 23. Rxf7 {[%clk 0:00:51.3]}
23... Kxf7 {[%clk 0:00:34.1]} 24. Rh2 {[%clk 0:00:38.6]} 24... Ke6 {[%clk
0:00:33.2]} 25. Rd2 {[%clk 0:00:36.3]} 25... Nd7 {[%clk 0:00:27.7]} 26. Rd5
{[%clk 0:00:16.1]} 26... Rxf3 {[%clk 0:00:27]} 27. Rxb5 {[%clk 0:00:14.8]} 27...
Ng3 {[%clk 0:00:24.7]} 28. Nc5+ {[%clk 0:00:14.3]} 28... Nxc5 {[%clk 0:00:24.6]}
29. Rxc5 {[%clk 0:00:14.4]} 29... Rf1+ {[%clk 0:00:23.8]} 30. Kd2 {[%clk
0:00:14.2]} 30... Nxe4+ {[%clk 0:00:24.7]} 31. Kd3 {[%clk 0:00:13.2]} 31...
Nxc5+ {[%clk 0:00:24.2]} 32. Kc4 {[%clk 0:00:14.1]} 32... Ne4 {[%clk 0:00:24.1]}
33. b4 {[%clk 0:00:15]} 33... Nxg5 {[%clk 0:00:24.2]} 34. hxg5 {[%clk
0:00:14.8]} 34... Rd1 {[%clk 0:00:21.7]} 35. b5 {[%clk 0:00:14.4]} 35... e4
{[%clk 0:00:22]} 36. b6 {[%clk 0:00:13.9]} 36... Kd6 {[%clk 0:00:20.9]} 37. Kb5
{[%clk 0:00:14.2]} 37... e3 {[%clk 0:00:20.6]} 38. c4 {[%clk 0:00:15.1]} 38...
e2 {[%clk 0:00:20.5]} 39. c5+ {[%clk 0:00:16]} 39... Kd5 {[%clk 0:00:20.5]} 40.
b7 {[%clk 0:00:16.3]} 40... Rb1+ {[%clk 0:00:20.2]} 41. Ka6 {[%clk 0:00:17.2]}
41... Rxb7 {[%clk 0:00:20.5]} 42. Kxb7 {[%clk 0:00:17.5]} 42... e1=Q {[%clk
0:00:21.1]} 43. c6 {[%clk 0:00:18.4]} 43... Qb4+ {[%clk 0:00:21.1]} 0-1